[Event "Titled Tuesday Blitz July 26 Early 2022"]
[White "Visakh N R"]
[Black "Przybylski, Wojciech"]
[WhiteFideId "25012223"]
[BlackFideId "1117599"]
[WhiteElo "2448"]
[BlackElo "2133"]
[Result "1-0"]
[Round "01"]
[TimeControl "180+1"]
[Date "2022.07.26"]
[WhiteClock "0:01:18"]
[BlackClock "0:00:03"]

1. e4 {[%clk 0:03:00]}  c5 {[%clk 0:02:57]} 2. Nf3 {[%clk 0:03:00]}  e6 {[%clk 0:02:56]} 3. d4 {[%clk 0:02:57]}  cxd4 {[%clk 0:02:56]} 4. Nxd4 {[%clk 0:02:58]}  Nc6 {[%clk 0:02:56]} 5. Nxc6 {[%clk 0:02:54]}  bxc6 {[%clk 0:02:55]} 6. Bd3 {[%clk 0:02:55]}  e5 {[%clk 0:02:54]} 7. O-O {[%clk 0:02:55]}  Nf6 {[%clk 0:02:53]} 8. b3 {[%clk 0:02:55]}  d6 {[%clk 0:02:51]} 9. Bb2 {[%clk 0:02:55]}  Be7 {[%clk 0:02:49]} 10. Nd2 {[%clk 0:02:55]}  O-O {[%clk 0:02:48]} 11. Qe2 {[%clk 0:02:55]}  Bg4 {[%clk 0:02:33]} 12. f3 {[%clk 0:02:55]}  Be6 {[%clk 0:02:33]} 13. a4 {[%clk 0:02:51]}  Re8 {[%clk 0:02:24]} 14. Rad1 {[%clk 0:02:47]}  Qc7 {[%clk 0:02:24]} 15. Nc4 {[%clk 0:02:47]}  Rad8 {[%clk 0:02:23]} 16. Bc3 {[%clk 0:02:47]}  Nd7 {[%clk 0:02:18]} 17. Ba5 {[%clk 0:02:43]}  Nb6 {[%clk 0:02:18]} 18. Qf2 {[%clk 0:02:42]}  Rb8 {[%clk 0:02:17]} 19. Be2 {[%clk 0:02:42]}  d5 {[%clk 0:02:01]} 20. Ne3 {[%clk 0:02:28]}  Bc5 {[%clk 0:01:52]} 21. b4 {[%clk 0:02:27]}  Bd4 {[%clk 0:01:52]} 22. c3 {[%clk 0:02:26]}  Bxc3 {[%clk 0:01:50]} 23. exd5 {[%clk 0:02:23]}  cxd5 {[%clk 0:01:34]} 24. Rc1 {[%clk 0:02:17]}  d4 {[%clk 0:01:31]} 25. Nd1 {[%clk 0:02:16]}  Qe7 {[%clk 0:00:50]} 26. Nxc3 {[%clk 0:02:13]}  dxc3 {[%clk 0:00:49]} 27. Rxc3 {[%clk 0:02:14]}  Nd5 {[%clk 0:00:48]} 28. Rc5 {[%clk 0:02:10]}  Nxb4 {[%clk 0:00:47]} 29. Bb5 {[%clk 0:02:09]}  Nd5 {[%clk 0:00:10]} 30. Bxe8 {[%clk 0:02:08]}  Qxe8 {[%clk 0:00:10]} 31. Bd2 {[%clk 0:02:03]}  Qxa4 {[%clk 0:00:09]} 32. Ra5 {[%clk 0:02:03]}  Qc2 {[%clk 0:00:08]} 33. Qxa7 {[%clk 0:02:03]}  Rc8 {[%clk 0:00:06]} 34. Ra2 {[%clk 0:02:01]}  Qd3 {[%clk 0:00:05]} 35. Rb2 {[%clk 0:01:51]}  h5 {[%clk 0:00:04]} 36. Qf2 {[%clk 0:01:51]}  Qg6 {[%clk 0:00:03]} 37. Re1 {[%clk 0:01:50]}  f6 {[%clk 0:00:03]} 38. Be3 {[%clk 0:01:40]}  Qf7 {[%clk 0:00:03]} 39. Rd2 {[%clk 0:01:40]}  Rc7 {[%clk 0:00:03]} 40. f4 {[%clk 0:01:40]}  Nxf4 {[%clk 0:00:03]} 41. Bxf4 {[%clk 0:01:40]}  exf4 {[%clk 0:00:04]} 42. Qxf4 {[%clk 0:01:40]}  Rd7 {[%clk 0:00:04]} 43. Rde2 {[%clk 0:01:38]}  Bd5 {[%clk 0:00:03]} 44. Qf5 {[%clk 0:01:21]}  Rd8 {[%clk 0:00:03]} 45. Re7 {[%clk 0:01:20]}  Qf8 {[%clk 0:00:02]} 46. Qxh5 {[%clk 0:01:19]}  Bf7 {[%clk 0:00:02]} 47. Qe2 {[%clk 0:01:17]}  Re8 {[%clk 0:00:03]} 48. Rxe8 {[%clk 0:01:17]}  Bxe8 {[%clk 0:00:03]} 49. Qxe8 {[%clk 0:01:18]}  Qxe8 {[%clk 0:00:03]} 50. Rxe8+ {[%clk 0:01:18]} 1-0


[Site "https://www.chess.com"]

[Event "Titled Tuesday Blitz July 26 Early 2022"]
[White "Wagner, Dennis"]
[Black "Garrido, Denis"]
[WhiteFideId "24650684"]
[BlackFideId "601217"]
[WhiteElo "2355"]
[BlackElo "2384"]
[Result "1/2-1/2"]
[Round "01"]
[TimeControl "180+1"]
[Date "2022.07.27"]
[WhiteClock "0:00:09"]
[BlackClock "0:00:07"]

1. e4 {[%clk 0:03:00]}  e5 {[%clk 0:02:59]} 2. Nf3 {[%clk 0:03:00]}  Nc6 {[%clk 0:03:00]} 3. Bc4 {[%clk 0:02:59]}  Nf6 {[%clk 0:02:59]} 4. d3 {[%clk 0:02:59]}  Bc5 {[%clk 0:02:58]} 5. O-O {[%clk 0:02:57]}  d6 {[%clk 0:02:58]} 6. c3 {[%clk 0:02:55]}  a6 {[%clk 0:02:58]} 7. a4 {[%clk 0:02:55]}  Ba7 {[%clk 0:02:58]} 8. Re1 {[%clk 0:02:52]}  O-O {[%clk 0:02:55]} 9. h3 {[%clk 0:02:51]}  h6 {[%clk 0:02:54]} 10. Nbd2 {[%clk 0:02:37]}  Re8 {[%clk 0:02:44]} 11. b4 {[%clk 0:02:34]}  Be6 {[%clk 0:02:43]} 12. Bxe6 {[%clk 0:02:33]}  Rxe6 {[%clk 0:02:43]} 13. Qc2 {[%clk 0:02:34]}  d5 {[%clk 0:02:31]} 14. Rb1 {[%clk 0:02:33]}  dxe4 {[%clk 0:02:29]} 15. dxe4 {[%clk 0:02:31]}  Qd7 {[%clk 0:02:18]} 16. b5 {[%clk 0:02:05]}  Na5 {[%clk 0:02:03]} 17. c4 {[%clk 0:02:04]}  Rd8 {[%clk 0:02:00]} 18. Bb2 {[%clk 0:02:00]}  Nh5 {[%clk 0:01:49]} 19. Bc3 {[%clk 0:01:49]}  Nf4 {[%clk 0:01:20]} 20. Nxe5 {[%clk 0:01:22]}  Rxe5 {[%clk 0:01:07]} 21. Bxe5 {[%clk 0:01:23]}  Nd3 {[%clk 0:01:00]} 22. Qc3 {[%clk 0:00:54]}  Bxf2+ {[%clk 0:00:57]} 23. Kh1 {[%clk 0:00:46]}  Bxe1 {[%clk 0:00:55]} 24. Rxe1 {[%clk 0:00:13]}  Nxe1 {[%clk 0:00:44]} 25. Nf1 {[%clk 0:00:13]}  Nd3 {[%clk 0:00:09]} 26. Bxg7 {[%clk 0:00:12]}  Nf2+ {[%clk 0:00:08]} 27. Kg1 {[%clk 0:00:11]}  Nxe4 {[%clk 0:00:09]} 28. Qe5 {[%clk 0:00:06]}  Ng5 {[%clk 0:00:05]} 29. Bxh6 {[%clk 0:00:06]}  Ne6 {[%clk 0:00:05]} 30. Qf6 {[%clk 0:00:05]}  Qd4+ {[%clk 0:00:05]} 31. Qxd4 {[%clk 0:00:04]}  Rxd4 {[%clk 0:00:06]} 32. Ne3 {[%clk 0:00:04]}  Nxc4 {[%clk 0:00:06]} 33. Nf5 {[%clk 0:00:04]}  Rd1+ {[%clk 0:00:06]} 34. Kf2 {[%clk 0:00:04]}  Ra1 {[%clk 0:00:05]} 35. bxa6 {[%clk 0:00:04]}  bxa6 {[%clk 0:00:06]} 36. g4 {[%clk 0:00:04]}  Rxa4 {[%clk 0:00:05]} 37. h4 {[%clk 0:00:05]}  Ra2+ {[%clk 0:00:06]} 38. Kg3 {[%clk 0:00:05]}  Ra3+ {[%clk 0:00:06]} 39. Kf2 {[%clk 0:00:06]}  Ne5 {[%clk 0:00:07]} 40. Ne7+ {[%clk 0:00:05]}  Kh7 {[%clk 0:00:07]} 41. Bc1 {[%clk 0:00:05]}  Nxg4+ {[%clk 0:00:07]} 42. Ke2 {[%clk 0:00:05]}  Rc3 {[%clk 0:00:08]} 43. Bd2 {[%clk 0:00:04]}  Rc2 {[%clk 0:00:08]} 44. Kd3 {[%clk 0:00:05]}  Rxd2+ {[%clk 0:00:08]} 45. Kxd2 {[%clk 0:00:06]}  a5 {[%clk 0:00:08]} 46. Nc6 {[%clk 0:00:06]}  a4 {[%clk 0:00:07]} 47. Kc3 {[%clk 0:00:06]}  Nc5 {[%clk 0:00:08]} 48. Kb4 {[%clk 0:00:06]}  Ne6 {[%clk 0:00:05]} 49. Kxa4 {[%clk 0:00:06]}  Nf4 {[%clk 0:00:06]} 50. Kb5 {[%clk 0:00:06]}  Ng6 {[%clk 0:00:06]} 51. Nd8 {[%clk 0:00:07]}  Nxh4 {[%clk 0:00:06]} 52. Nxf7 {[%clk 0:00:07]}  Nf5 {[%clk 0:00:05]} 53. Kc6 {[%clk 0:00:07]}  Nf6 {[%clk 0:00:04]} 54. Kxc7 {[%clk 0:00:07]}  Kg6 {[%clk 0:00:05]} 55. Nd8 {[%clk 0:00:07]}  Kg7 {[%clk 0:00:06]} 56. Nc6 {[%clk 0:00:07]}  Kf7 {[%clk 0:00:06]} 57. Kb6 {[%clk 0:00:08]}  Ne7 {[%clk 0:00:07]} 58. Kc5 {[%clk 0:00:09]}  Nxc6 {[%clk 0:00:07]} 1/2-1/2


[Site "https://www.chess.com"]

[Event "Titled Tuesday Blitz July 26 Early 2022"]
[White "Yaniuk, Volodymyr"]
[Black "Paravyan, David"]
[WhiteFideId "14133083"]
[BlackFideId "4194985"]
[WhiteElo "2141"]
[BlackElo "2569"]
[Result "0-1"]
[Round "01"]
[TimeControl "180+1"]
[Date "2022.07.26"]
[WhiteClock "0:00:09"]
[BlackClock "0:01:11"]

1. d4 {[%clk 0:02:55]}  Nf6 {[%clk 0:02:57]} 2. c4 {[%clk 0:02:55]}  g6 {[%clk 0:02:57]} 3. Nc3 {[%clk 0:02:55]}  d5 {[%clk 0:02:58]} 4. Bg5 {[%clk 0:02:52]}  Ne4 {[%clk 0:02:56]} 5. Bh4 {[%clk 0:02:49]}  Nxc3 {[%clk 0:02:56]} 6. bxc3 {[%clk 0:02:49]}  dxc4 {[%clk 0:02:53]} 7. e3 {[%clk 0:02:49]}  Be6 {[%clk 0:02:52]} 8. Nh3 {[%clk 0:02:49]}  Bxh3 {[%clk 0:02:29]} 9. gxh3 {[%clk 0:02:50]}  Bg7 {[%clk 0:02:29]} 10. Bxc4 {[%clk 0:02:47]}  O-O {[%clk 0:02:29]} 11. O-O {[%clk 0:02:45]}  Nd7 {[%clk 0:02:29]} 12. Qf3 {[%clk 0:02:42]}  c6 {[%clk 0:02:30]} 13. Rab1 {[%clk 0:02:35]}  Nb6 {[%clk 0:02:29]} 14. Bd3 {[%clk 0:02:29]}  Qd7 {[%clk 0:02:27]} 15. Qg4 {[%clk 0:02:09]}  f5 {[%clk 0:02:24]} 16. Qg2 {[%clk 0:02:01]}  e5 {[%clk 0:02:20]} 17. Rfd1 {[%clk 0:01:51]}  e4 {[%clk 0:02:19]} 18. Bc2 {[%clk 0:01:45]}  Nd5 {[%clk 0:02:18]} 19. Bb3 {[%clk 0:01:36]}  Kh8 {[%clk 0:02:19]} 20. Rdc1 {[%clk 0:01:23]}  f4 {[%clk 0:02:11]} 21. c4 {[%clk 0:01:01]}  Nb4 {[%clk 0:02:05]} 22. Qg4 {[%clk 0:00:43]}  Rf5 {[%clk 0:02:03]} 23. exf4 {[%clk 0:00:34]}  Nd3 {[%clk 0:02:01]} 24. Rc2 {[%clk 0:00:31]}  Bxd4 {[%clk 0:01:45]} 25. Kh1 {[%clk 0:00:27]}  Qc7 {[%clk 0:01:32]} 26. Bg3 {[%clk 0:00:26]}  Re8 {[%clk 0:01:29]} 27. Re2 {[%clk 0:00:24]}  c5 {[%clk 0:01:14]} 28. Kg2 {[%clk 0:00:24]}  Qc6 {[%clk 0:01:12]} 29. Kg1 {[%clk 0:00:23]}  Ref8 {[%clk 0:01:11]} 30. Bc2 {[%clk 0:00:19]}  h5 {[%clk 0:01:10]} 31. Qh4 {[%clk 0:00:18]}  Bf6 {[%clk 0:01:11]} 32. Qg4 {[%clk 0:00:09]}  hxg4 {[%clk 0:01:10]} 33. hxg4 {[%clk 0:00:10]}  Rxf4 {[%clk 0:01:10]} 34. Bxd3 {[%clk 0:00:09]}  exd3 {[%clk 0:01:11]} 0-1


[Site "https://www.chess.com"]

[Event "Titled Tuesday Blitz July 26 Early 2022"]
[White "Zierk, Steven"]
[Black "Tanaka, Taira Tyler"]
[WhiteFideId "2034255"]
[BlackFideId "7002351"]
[WhiteElo "2494"]
[BlackElo "2505"]
[Result "1-0"]
[Round "01"]
[TimeControl "180+1"]
[Date "2022.07.26"]
[WhiteClock "0:02:45"]
[BlackClock "0:02:00"]

1. b3 {[%clk 0:02:59]}  e5 {[%clk 0:02:56]} 2. Bb2 {[%clk 0:02:59]}  Nc6 {[%clk 0:02:56]} 3. c4 {[%clk 0:02:59]}  Nf6 {[%clk 0:02:43]} 4. e3 {[%clk 0:02:59]}  Be7 {[%clk 0:02:32]} 5. Nc3 {[%clk 0:02:56]}  O-O {[%clk 0:02:30]} 6. Nf3 {[%clk 0:02:52]}  d5 {[%clk 0:02:28]} 7. cxd5 {[%clk 0:02:52]}  Nxd5 {[%clk 0:02:29]} 8. Nxd5 {[%clk 0:02:52]}  Qxd5 {[%clk 0:02:30]} 9. Bc4 {[%clk 0:02:52]}  Qd6 {[%clk 0:02:30]} 10. d4 {[%clk 0:02:48]}  exd4 {[%clk 0:02:28]} 11. Nxd4 {[%clk 0:02:48]}  Nxd4 {[%clk 0:02:23]} 12. Qxd4 {[%clk 0:02:47]}  Be6 {[%clk 0:02:00]} 13. Qxg7# {[%clk 0:02:45]} 1-0


[Site "https://www.chess.com"]

[Event "Titled Tuesday Blitz July 26 Early 2022"]
[White "Aravindh, Chithambaram VR."]
[Black "Ambartsumova, Karina"]
[WhiteFideId "5072786"]
[BlackFideId "4166299"]
[WhiteElo "2577"]
[BlackElo "2262"]
[Result "1-0"]
[Round "02"]
[TimeControl "180+1"]
[Date "2022.07.26"]
[WhiteClock "0:01:11"]
[BlackClock "0:00:02"]

1. b3 {[%clk 0:03:00]}  e5 {[%clk 0:02:59]} 2. Bb2 {[%clk 0:03:01]}  Nc6 {[%clk 0:02:59]} 3. e3 {[%clk 0:03:01]}  g6 {[%clk 0:02:58]} 4. c4 {[%clk 0:03:00]}  Bg7 {[%clk 0:02:58]} 5. g3 {[%clk 0:02:59]}  Nge7 {[%clk 0:02:57]} 6. Bg2 {[%clk 0:02:59]}  O-O {[%clk 0:02:57]} 7. Nc3 {[%clk 0:02:59]}  d6 {[%clk 0:02:57]} 8. Nge2 {[%clk 0:02:59]}  Bg4 {[%clk 0:02:35]} 9. h3 {[%clk 0:02:50]}  Bd7 {[%clk 0:02:35]} 10. d4 {[%clk 0:02:48]}  f5 {[%clk 0:02:24]} 11. O-O {[%clk 0:02:44]}  Kh8 {[%clk 0:02:22]} 12. Nd5 {[%clk 0:02:38]}  e4 {[%clk 0:01:55]} 13. Nxe7 {[%clk 0:02:36]}  Nxe7 {[%clk 0:01:50]} 14. Qd2 {[%clk 0:02:35]}  Qe8 {[%clk 0:01:39]} 15. d5 {[%clk 0:02:33]}  Qf7 {[%clk 0:01:33]} 16. Nd4 {[%clk 0:02:24]}  Rae8 {[%clk 0:01:31]} 17. Rac1 {[%clk 0:02:11]}  g5 {[%clk 0:01:16]} 18. f4 {[%clk 0:02:02]}  exf3 {[%clk 0:01:11]} 19. Bxf3 {[%clk 0:01:58]}  Ng6 {[%clk 0:00:47]} 20. c5 {[%clk 0:01:56]}  Qe7 {[%clk 0:00:44]} 21. cxd6 {[%clk 0:01:56]}  cxd6 {[%clk 0:00:44]} 22. Rc7 {[%clk 0:01:56]}  Qd8 {[%clk 0:00:23]} 23. Rxb7 {[%clk 0:01:46]}  Re7 {[%clk 0:00:20]} 24. Nc6 {[%clk 0:01:35]}  Bxc6 {[%clk 0:00:20]} 25. dxc6 {[%clk 0:01:36]}  Ne5 {[%clk 0:00:19]} 26. Bd5 {[%clk 0:01:34]}  Rxb7 {[%clk 0:00:12]} 27. cxb7 {[%clk 0:01:35]}  Qb6 {[%clk 0:00:13]} 28. Kg2 {[%clk 0:01:27]}  a6 {[%clk 0:00:11]} 29. Rc1 {[%clk 0:01:25]}  f4 {[%clk 0:00:08]} 30. exf4 {[%clk 0:01:23]}  gxf4 {[%clk 0:00:09]} 31. gxf4 {[%clk 0:01:14]}  Ng6 {[%clk 0:00:09]} 32. Rc8 {[%clk 0:01:14]}  Nh4+ {[%clk 0:00:02]} 33. Kh2 {[%clk 0:01:11]} 1-0


[Site "https://www.chess.com"]

[Event "Titled Tuesday Blitz July 26 Early 2022"]
[White "Bilan, Danila"]
[Black "Vivekananthan, Anish"]
[WhiteFideId "24161918"]
[BlackFideId "2090775"]
[WhiteElo "2164"]
[BlackElo "2813"]
[Result "1/2-1/2"]
[Round "02"]
[TimeControl "180+1"]
[Date "2022.07.26"]
[WhiteClock "0:00:18"]
[BlackClock "0:00:36"]

1. d4 {[%clk 0:03:00]}  d5 {[%clk 0:02:59]} 2. Nf3 {[%clk 0:03:00]}  Nf6 {[%clk 0:02:59]} 3. c4 {[%clk 0:03:00]}  dxc4 {[%clk 0:03:00]} 4. e3 {[%clk 0:02:59]}  e6 {[%clk 0:03:00]} 5. Bxc4 {[%clk 0:02:59]}  a6 {[%clk 0:03:00]} 6. a4 {[%clk 0:02:57]}  c5 {[%clk 0:03:00]} 7. O-O {[%clk 0:02:53]}  Nc6 {[%clk 0:03:00]} 8. Nc3 {[%clk 0:02:49]}  cxd4 {[%clk 0:02:55]} 9. exd4 {[%clk 0:02:47]}  Be7 {[%clk 0:02:55]} 10. d5 {[%clk 0:02:23]}  exd5 {[%clk 0:02:38]} 11. Nxd5 {[%clk 0:02:23]}  O-O {[%clk 0:02:35]} 12. Nxe7+ {[%clk 0:02:20]}  Qxe7 {[%clk 0:02:35]} 13. Bg5 {[%clk 0:02:16]}  Qc5 {[%clk 0:02:31]} 14. Qc2 {[%clk 0:02:02]}  Be6 {[%clk 0:02:23]} 15. Rfc1 {[%clk 0:01:50]}  Nd5 {[%clk 0:02:19]} 16. h3 {[%clk 0:01:38]}  Rac8 {[%clk 0:02:13]} 17. Qe4 {[%clk 0:01:19]}  Qa5 {[%clk 0:01:29]} 18. b4 {[%clk 0:00:49]}  Ndxb4 {[%clk 0:01:07]} 19. Bxe6 {[%clk 0:00:43]}  fxe6 {[%clk 0:01:08]} 20. Qxe6+ {[%clk 0:00:39]}  Kh8 {[%clk 0:01:07]} 21. Bd2 {[%clk 0:00:38]}  Qd5 {[%clk 0:01:00]} 22. Qxd5 {[%clk 0:00:29]}  Nxd5 {[%clk 0:01:01]} 23. Rab1 {[%clk 0:00:29]}  Rf7 {[%clk 0:00:52]} 24. Ne5 {[%clk 0:00:23]}  Rfc7 {[%clk 0:00:52]} 25. Nxc6 {[%clk 0:00:22]}  bxc6 {[%clk 0:00:47]} 26. Rc5 {[%clk 0:00:22]}  Kg8 {[%clk 0:00:41]} 27. Rbc1 {[%clk 0:00:21]}  Ne7 {[%clk 0:00:36]} 28. Bg5 {[%clk 0:00:19]}  Nd5 {[%clk 0:00:36]} 29. Bd2 {[%clk 0:00:18]}  Ne7 {[%clk 0:00:36]} 30. Bg5 {[%clk 0:00:18]}  Nd5 {[%clk 0:00:36]} 31. Bd2 {[%clk 0:00:18]} 1/2-1/2


[Site "https://www.chess.com"]

[Event "Titled Tuesday Blitz July 26 Early 2022"]
[White "Blanco Ronquillo, Humberto L."]
[Black "Dubov, Daniil"]
[WhiteFideId "3504239"]
[BlackFideId "24126055"]
[WhiteElo "2423"]
[BlackElo "2791"]
[Result "0-1"]
[Round "02"]
[TimeControl "180+1"]
[Date "2022.07.26"]
[WhiteClock "0:00:01"]
[BlackClock "0:00:10"]

1. e4 {[%clk 0:03:00]}  e5 {[%clk 0:02:58]} 2. Nf3 {[%clk 0:03:00]}  Nc6 {[%clk 0:02:58]} 3. Bb5 {[%clk 0:03:01]}  a6 {[%clk 0:02:58]} 4. Ba4 {[%clk 0:03:01]}  Nf6 {[%clk 0:02:58]} 5. O-O {[%clk 0:03:01]}  Be7 {[%clk 0:02:58]} 6. Re1 {[%clk 0:03:01]}  b5 {[%clk 0:02:59]} 7. Bb3 {[%clk 0:03:01]}  O-O {[%clk 0:02:59]} 8. h3 {[%clk 0:03:00]}  Bb7 {[%clk 0:02:56]} 9. d3 {[%clk 0:02:58]}  h6 {[%clk 0:02:54]} 10. Nbd2 {[%clk 0:02:55]}  Re8 {[%clk 0:02:54]} 11. Nf1 {[%clk 0:02:55]}  Bf8 {[%clk 0:02:55]} 12. a4 {[%clk 0:02:44]}  d6 {[%clk 0:02:46]} 13. c3 {[%clk 0:02:38]}  Ne7 {[%clk 0:02:43]} 14. Ng3 {[%clk 0:02:38]}  Ng6 {[%clk 0:02:41]} 15. Nh2 {[%clk 0:02:21]}  d5 {[%clk 0:02:30]} 16. Qf3 {[%clk 0:02:21]}  c5 {[%clk 0:02:26]} 17. axb5 {[%clk 0:02:15]}  axb5 {[%clk 0:02:17]} 18. Rxa8 {[%clk 0:02:16]}  Bxa8 {[%clk 0:02:12]} 19. Ng4 {[%clk 0:02:05]}  Nxg4 {[%clk 0:02:08]} 20. hxg4 {[%clk 0:02:06]}  c4 {[%clk 0:02:07]} 21. Bc2 {[%clk 0:02:06]}  d4 {[%clk 0:02:02]} 22. Nf5 {[%clk 0:01:59]}  Nh4 {[%clk 0:02:00]} 23. Qg3 {[%clk 0:01:42]}  Nxf5 {[%clk 0:01:58]} 24. gxf5 {[%clk 0:01:42]}  Qf6 {[%clk 0:01:54]} 25. Bd2 {[%clk 0:01:08]}  Bc5 {[%clk 0:01:46]} 26. b3 {[%clk 0:00:45]}  dxc3 {[%clk 0:01:42]} 27. Bxc3 {[%clk 0:00:45]}  b4 {[%clk 0:01:43]} 28. Bd2 {[%clk 0:00:43]}  c3 {[%clk 0:01:42]} 29. Be3 {[%clk 0:00:43]}  Bxe3 {[%clk 0:01:37]} 30. Qxe3 {[%clk 0:00:44]}  Qa6 {[%clk 0:01:24]} 31. Qc5 {[%clk 0:00:37]}  Qa2 {[%clk 0:01:16]} 32. Re2 {[%clk 0:00:37]}  Qa3 {[%clk 0:01:09]} 33. g4 {[%clk 0:00:35]}  f6 {[%clk 0:00:57]} 34. f3 {[%clk 0:00:35]}  Kh7 {[%clk 0:00:54]} 35. d4 {[%clk 0:00:35]}  exd4 {[%clk 0:00:51]} 36. Qxd4 {[%clk 0:00:36]}  Qa5 {[%clk 0:00:48]} 37. Kg2 {[%clk 0:00:33]}  Rd8 {[%clk 0:00:46]} 38. Qc4 {[%clk 0:00:32]}  Bb7 {[%clk 0:00:45]} 39. Qe6 {[%clk 0:00:11]}  Ba6 {[%clk 0:00:38]} 40. Rf2 {[%clk 0:00:09]}  Bd3 {[%clk 0:00:35]} 41. Bxd3 {[%clk 0:00:07]}  Rxd3 {[%clk 0:00:36]} 42. Qf7 {[%clk 0:00:08]}  Qd8 {[%clk 0:00:35]} 43. e5 {[%clk 0:00:04]}  Rd2 {[%clk 0:00:22]} 44. e6 {[%clk 0:00:01]}  c2 {[%clk 0:00:10]} 0-1


[Site "https://www.chess.com"]

[Event "Titled Tuesday Blitz July 26 Early 2022"]
[White "Bortnyk, Olexandr"]
[Black "Ismagilov, Damir"]
[WhiteFideId "14120828"]
[BlackFideId "34199982"]
[WhiteElo "2723"]
[BlackElo "2138"]
[Result "1-0"]
[Round "02"]
[TimeControl "180+1"]
[Date "2022.07.26"]
[WhiteClock "0:00:25"]
[BlackClock "0:00:15"]

1. d4 {[%clk 0:02:56]}  e6 {[%clk 0:03:00]} 2. Nc3 {[%clk 0:02:55]}  Bb4 {[%clk 0:03:00]} 3. e4 {[%clk 0:02:54]}  d5 {[%clk 0:03:00]} 4. Qd3 {[%clk 0:02:55]}  dxe4 {[%clk 0:02:59]} 5. Qxe4 {[%clk 0:02:56]}  Nf6 {[%clk 0:03:00]} 6. Qh4 {[%clk 0:02:49]}  b6 {[%clk 0:03:00]} 7. Nf3 {[%clk 0:02:43]}  Bb7 {[%clk 0:02:59]} 8. Bg5 {[%clk 0:02:29]}  h6 {[%clk 0:02:54]} 9. Ne5 {[%clk 0:02:14]}  O-O {[%clk 0:02:28]} 10. Bd2 {[%clk 0:01:17]}  Nc6 {[%clk 0:01:48]} 11. Nf3 {[%clk 0:00:59]}  Ne7 {[%clk 0:01:24]} 12. Bd3 {[%clk 0:00:56]}  Nf5 {[%clk 0:01:23]} 13. Qh3 {[%clk 0:00:42]}  Nxd4 {[%clk 0:01:10]} 14. O-O-O {[%clk 0:00:42]}  c5 {[%clk 0:01:02]} 15. Bxh6 {[%clk 0:00:37]}  gxh6 {[%clk 0:01:01]} 16. Qxh6 {[%clk 0:00:38]}  e5 {[%clk 0:00:36]} 17. Qg5+ {[%clk 0:00:29]}  Kh8 {[%clk 0:00:35]} 18. Qh6+ {[%clk 0:00:30]}  Kg8 {[%clk 0:00:35]} 19. Ng5 {[%clk 0:00:31]}  e4 {[%clk 0:00:26]} 20. Ncxe4 {[%clk 0:00:31]}  Bxe4 {[%clk 0:00:26]} 21. Bxe4 {[%clk 0:00:29]}  Ne2+ {[%clk 0:00:17]} 22. Kb1 {[%clk 0:00:29]}  Bd2 {[%clk 0:00:16]} 23. Rxd2 {[%clk 0:00:25]}  Qxd2 {[%clk 0:00:15]} 24. Bh7+ {[%clk 0:00:25]} 1-0


[Site "https://www.chess.com"]